{"text_format":"1","workbook":"xlsx","n_sheets":3,"sheets":["modelo","backup","bd"],"not_rendered":{"charts":0,"images":1,"macros":1,"external_links":0,"defined_names":3,"comments":0,"pivot_tables":0},"unopened":[],"bounds":{"document_bytes":16777216,"sheet_cells":100000,"rows_first":2000,"rows_last":500,"rows_between":2000,"halvings":0,"cell_chars":16384,"cell_head_chars":4096},"cells_cut":0,"cells_raw":0,"read":"whole","date_system":"1900"}

{"sheet":"modelo","index":0,"n_rows":41,"n_cols":16,"rows_kept":41,"cut":false,"hidden":false,"merged":[[35,12,35,15],[16,12,16,15],[28,6,28,7],[6,0,6,15],[3,0,3,15],[4,0,4,15],[5,0,5,15],[9,8,9,11],[8,8,8,9],[32,0,34,15],[13,0,15,15],[24,0,26,15],[11,8,11,10],[27,12,27,15]]}
[]
[]
[]
["Clínica Veterinária Animed 24h"]
["Av. Cavalhada, 1957 – Cavalhada – Porto Alegre – RS"]
["Fone: (51) 3249-9592"]
["E-mail: exames.animed@gmail.com"]
[]
["Paciente:",null,null,null,null,"teste paciente",null,null,"Porprietário:",null,null,null,"teste"]
["Espécie:",null,null,null,null,"Canino",null,null,"Veterinário Requisitante:"]
["Raça:",null,null,null,null,null,null,null,"Data:"]
["Idade:",null,null,null,null,null,null,null,"Amostra Analisada:",null,null,null,"Sangue"]
["Sexo:",null,null,null,null,"Macho"]
["ERITROGRAMA"]
[]
[]
[null,null,null,null,null,null,null,null,null,null,null,null,"Valores de Referência"]
["Eritrócitos",null,null,null,null,null,null,null,"milhões/mm³",null,null,null,null,{"$f":"INDEX(bd!B2:B3,MATCH(F10,bd!A2:A3,0))","v":"5,5 a 8,5"},"milhões/mm3"]
["Hemoglobina",null,null,null,null,null,null,null,"g/dl",null,null,null,null,{"$f":"INDEX(bd!C2:C3,MATCH(F10,bd!A2:A3,0))","v":"12 a 18"},"g/dl"]
["Hematócrito",null,null,null,null,null,null,null,"%",null,null,null,null,{"$f":"INDEX(bd!D2:D74,MATCH(F10,bd!A2:A74,0))","v":"37 a 55"},"%"]
["V.C.M",null,null,null,null,null,null,{"$f":"(H20/H18)*10","v":{"$error":"#DIV/0!"}},"u³",null,null,null,null,{"$f":"INDEX(bd!E2:E3,MATCH(F10,bd!A2:A3,0))","v":"60 a 77"},"u³"]
["H.C.M",null,null,null,null,null,null,{"$f":"(H19/H18)*10","v":{"$error":"#DIV/0!"}},"uug",null,null,null,null,{"$f":"INDEX(bd!F2:F3,MATCH(F10,bd!A2:A3,0))","v":"22 a 25"},"uug"]
["C.H.C.M",null,null,null,null,null,null,{"$f":"(H19/H20)*100","v":{"$error":"#DIV/0!"}},"%",null,null,null,null,{"$f":"INDEX(bd!G2:G3,MATCH(F10,bd!A2:A3,0))","v":"32a 36"},"g%"]
["Plaquetas",null,null,null,null,null,null,1000,"/mm³",null,null,null,null,{"$f":"INDEX(bd!O2:O3,MATCH(F10,bd!A2:A3,0))","v":"200.000 a 500.000"},"mil/mm³"]
["LEUCOGRAMA"]
[]
[]
[null,null,null,null,null,null,null,null,null,null,null,null,"Valores de Referência"]
["Leucócitos Totais",null,null,null,null,null,"%",null,100,"/mm³",null,null,"%",null,{"$f":"INDEX(bd!H2:H3,MATCH(F10,bd!A2:A3,0))","v":"6.000 a 17.000"},"/mm³"]
["Eosinófilos",null,null,null,null,null,{"$f":"(I30/I29)*100","v":100},"%",100,"/mm³",null,null,{"$f":"INDEX(bd!K2:K3,MATCH(F10,bd!A2:A3,0))","v":"2 a 10"},"%",{"$f":"INDEX(bd!L2:L3,MATCH(F10,bd!A2:A3,0))","v":"100 a 750"},"/mm³"]
["Linfócitos",null,null,null,null,null,{"$f":"(I31/I29)*100","v":100},"%",100,"/mm³",null,null,{"$f":"INDEX(bd!I2:I3,MATCH(F10,bd!A2:A3,))","v":"12 a 30"},"%",{"$f":"INDEX(bd!J2:J3,MATCH(F10,bd!A2:A3,0))","v":"1.000 a 4.800"},"/mm³"]
["Outros",null,null,null,null,null,{"$f":"100-(G30+G31)","v":-100},"%",{"$f":"I29-I30-I31","v":-100},"/mm³",null,null,{"$f":"INDEX(bd!M2:M3,MATCH(F10,bd!A2:A3,))","v":"63 a 88"},"%",{"$f":"INDEX(bd!N2:N3,MATCH(F10,bd!A2:A3,0))","v":"3.150 a 13.050"},"/mm³"]
["BIOQUÍMICA SANGUÍNEA"]
[]
[]
[null,null,null,null,null,null,null,null,null,null,null,null,"Valores de Referência"]
["ALT/GPT",null,null,null,null,null,null,null,null,"U/L",null,null,null,{"$f":"INDEX(bd!V2:V3,MATCH(F10,bd!U2:U3,0))","v":"7 a 80"},"U/L"]
["Fosfatase Alcalina",null,null,null,null,null,null,null,null,"U/L",null,null,null,{"$f":"INDEX(bd!W2:W3,MATCH(F10,bd!U2:U3,0))","v":"20 a 80"},"U/L"]
["Creatinina",null,null,null,null,null,null,null,null,"mmg/dL",null,null,null,{"$f":"INDEX(bd!Y2:Y3,MATCH(F10,bd!U2:U3,0))","v":"0,5 a 2,0"},"mg/Dl"]
["Ureia",null,null,null,null,null,null,null,null,"mmg/dL",null,null,null,{"$f":"INDEX(bd!X2:X3,MATCH(F10,bd!U2:U3,0))","v":"10 a 60"},"mg/Dl"]
["Glicemia",null,null,null,null,null,null,null,null,"mmg/dL",null,null,null,{"$f":"INDEX(bd!Z2:Z3,MATCH(F10,bd!U2:U3,0))","v":"60 a 120"},"mg/Dl"]

{"sheet":"backup","index":1,"n_rows":3,"n_cols":21,"rows_kept":3,"cut":false,"hidden":false,"merged":[]}
["codigo","pacientes","especie","raça","idade","sexo","proprietario","veterinario","data","eritrocitos","hemoglobina","hematocrito","plaquetas","alt/gpt","fosfatase","creatinina","ureia","leucocitos","eosinofilos","linfocitos","glicemia"]
[1,"proprietario 1","Felino","SRD","1 ano","Macho"," CELSO","Dra Ana Paula","2016-05-11",8.93,11.1,33.200000000000003,149000,0,0,0,0,"10.7",200,1100]
[2,"proprietario 2","Felino","SRD","10 anos","Fêmea","Magda","Dr Jean Fernandes","2016-05-11",6.77,9.3000000000000007,29.2,74,0,0,0,0,0.8,0.4,0.3,50]

{"sheet":"bd","index":2,"n_rows":44,"n_cols":26,"rows_kept":44,"cut":false,"hidden":false,"merged":[]}
["especie","hemacias","hemoglobina","hematócrito","V.C.M.","H.C.M.","C.H.C.M.","Leucócitos Totais","Linfócitos %","Linfócitos #","Eosinófilos %","Eosinófilos #","outros %","outros #","Plaquetas","Veterinários","especie","sexo","raças caes","Raças Gatos",null,"ALT/GPT","FOSFATASE","UREIA","CREATI","glicemia"]
["CANINO","5,5 a 8,5","12 a 18","37 a 55","60 a 77","22 a 25","32a 36","6.000 a 17.000","12 a 30","1.000 a 4.800","2 a 10","100 a 750","63 a 88","3.150 a 13.050","200.000 a 500.000","Dra Ana Paula","Canino","Macho","Basset Hound ","Abissínio","CANINO","7 a 80","20 a 80","10 a 60","0,5 a 2,0","60 a 120"]
["FELINO","5,0 a 10,0","8 a 15","30 a 45","39 a 55","22 a 25","30 a 36","5.500 a 19.500","20 a 55","1.500 a 7.000","2 a 12","100 a 750","55 a 79","2.550 a 13.550","200.000 a 600.000","Dr Antônio","Felino","Fêmea","Beagle ","American Shorthair","FELINO","10 a 80","25 a 93","20 a 65","0,5 a 1,8","75 a 140"]
[null,null,null,null,null,null,null,null,null,null,null,null,null,null,null,"Dra Bruna",null,null,"Bearded Collie ","Angorá"]
[null,null,null,null,null,null,null,null,null,null,null,null,null,null,null,"Dra Cintia",null,null,"Bichon Maltês ","Azul Russo"]
[null,null,null,null,null,null,null,null,null,null,null,null,null,null,null,"Dra Débora",null,null,"Border Collie ","Bengal"]
[null,null,null,null,null,null,null,null,null,null,null,null,null,null,null,"Dr Jean",null,null,"Boston Terrier ","Brazilian Shorthair"]
[null,null,null,null,null,null,null,null,null,null,null,null,null,null,null,"Dra Luciane",null,null,"Boxer ","British Shorthair"]
[null,null,null,null,null,null,null,null,null,null,null,null,null,null,null,"Outros",null,null,"Bull Terrier ","Burmese"]
[null,null,null,null,null,null,null,null,null,null,null,null,null,null,null,null,null,null,"Bulldog ","Chartreux"]
[null,null,null,null,null,null,null,null,null,null,null,null,null,null,null,null,null,null,"Bullmastiff","Cornish Rex"]
[null,null,null,null,null,null,null,null,null,null,null,null,null,null,null,null,null,null,"Chihuahua","Devon Rex"]
[null,null,null,null,null,null,null,null,null,null,null,null,null,null,null,null,null,null,"Chow Chow ","Egyptian Mau"]
[null,null,null,null,null,null,null,null,null,null,null,null,null,null,null,null,null,null,"Cocker Spaniel","European Shorthair"]
[null,null,null,null,null,null,null,null,null,null,null,null,null,null,null,null,null,null,"Dálmata ","Himalaio"]
[null,null,null,null,null,null,null,null,null,null,null,null,null,null,null,null,null,null,"Dobermann ","Maine Coon"]
[null,null,null,null,null,null,null,null,null,null,null,null,null,null,null,null,null,null,"Dogue Alemão","Munchkin"]
[null,null,null,null,null,null,null,null,null,null,null,null,null,null,null,null,null,null,"Dogue Argentino","Noruuguês da Floresta"]
[null,null,null,null,null,null,null,null,null,null,null,null,null,null,null,null,null,null,"Fox Terrier ","Oriental"]
[null,null,null,null,null,null,null,null,null,null,null,null,null,null,null,null,null,null,"Foxhound","Persa"]
[null,null,null,null,null,null,null,null,null,null,null,null,null,null,null,null,null,null,"Galgo","Ragdoll"]
[null,null,null,null,null,null,null,null,null,null,null,null,null,null,null,null,null,null,"Golden Retriever ","Sagrado da Birmânia"]
[null,null,null,null,null,null,null,null,null,null,null,null,null,null,null,null,null,null,"Husky Siberiano","Savannah"]
[null,null,null,null,null,null,null,null,null,null,null,null,null,null,null,null,null,null,"Labrador Retriever","Scottish Fold"]
[null,null,null,null,null,null,null,null,null,null,null,null,null,null,null,null,null,null,"Malamute-do-Alasca","Siamês"]
[null,null,null,null,null,null,null,null,null,null,null,null,null,null,null,null,null,null,"Mastin","Sphynx"]
[null,null,null,null,null,null,null,null,null,null,null,null,null,null,null,null,null,null,"Pastor Alemão"]
[null,null,null,null,null,null,null,null,null,null,null,null,null,null,null,null,null,null,"Pastor Belga "]
[null,null,null,null,null,null,null,null,null,null,null,null,null,null,null,null,null,null,"Pequinês"]
[null,null,null,null,null,null,null,null,null,null,null,null,null,null,null,null,null,null,"Perdigueiro"]
[null,null,null,null,null,null,null,null,null,null,null,null,null,null,null,null,null,null,"Pitbull "]
[null,null,null,null,null,null,null,null,null,null,null,null,null,null,null,null,null,null,"Pointer "]
[null,null,null,null,null,null,null,null,null,null,null,null,null,null,null,null,null,null,"Pug"]
[null,null,null,null,null,null,null,null,null,null,null,null,null,null,null,null,null,null,"Rottweiler "]
[null,null,null,null,null,null,null,null,null,null,null,null,null,null,null,null,null,null,"Samoiedo "]
[null,null,null,null,null,null,null,null,null,null,null,null,null,null,null,null,null,null,"São Bernardo "]
[null,null,null,null,null,null,null,null,null,null,null,null,null,null,null,null,null,null,"Shar-Pei "]
[null,null,null,null,null,null,null,null,null,null,null,null,null,null,null,null,null,null,"Shih Tzu"]
[null,null,null,null,null,null,null,null,null,null,null,null,null,null,null,null,null,null,"SRD"]
[null,null,null,null,null,null,null,null,null,null,null,null,null,null,null,null,null,null,"Teckel"]
[null,null,null,null,null,null,null,null,null,null,null,null,null,null,null,null,null,null,"Terra-nova "]
[null,null,null,null,null,null,null,null,null,null,null,null,null,null,null,null,null,null,"Terrier Norfolk"]
[null,null,null,null,null,null,null,null,null,null,null,null,null,null,null,null,null,null,"West Highland T."]
[null,null,null,null,null,null,null,null,null,null,null,null,null,null,null,null,null,null,"Yorkshire Terrier"]